bitfinex/quotes_BTCUSD_20260310
["timestamp","ask_amount","ask_price","bid_price","bid_amount"]
[1773147360117,0.03,70567.0,70560.0,0.07106133]
[1773147360318,0.03,70567.0,70560.0,0.0714392]
[1773147361690,0.03,70566.0,70560.0,0.0714392]
[1773147361891,0.03,70566.0,70560.0,0.32787994]
[1773147362721,0.03,70565.0,70560.0,0.32787994]
[1773147363412,0.03,70565.0,70561.0,0.25644074]
[1773147363810,0.03,70564.0,70562.0,0.07085966]
[1773147364013,0.00144,70570.0,70562.0,0.07085966]
[1773147367796,0.03,70569.0,70560.0,0.0714392]
[1773147368760,0.03,70569.0,70562.0,0.0002]
[1773147368974,0.03,70568.0,70562.0,0.0002]
[1773147370206,0.03,70568.0,70562.0,0.07105935]
[1773147373087,0.03,70568.0,70562.0,0.0002]
[1773147374110,0.00144,70573.0,70563.0,0.25413317]
[1773147374316,0.03,70568.0,70562.0,0.0002]
[1773147375049,0.03,70568.0,70562.0,0.07105948]
[1773147375254,0.03,70568.0,70562.0,0.0002]
[1773147376225,0.03,70563.0,70560.0,0.00057787]
[1773147376452,0.03,70563.0,70560.0,0.07143952]
[1773147376649,0.03880605,70563.0,70560.0,0.07143952]
[1773147376852,0.03,70563.0,70560.0,0.07143952]
[1773147377433,0.03144,70566.0,70560.0,0.07143952]
[1773147378053,0.03993098,70566.0,70560.0,0.07143952]
[1773147379624,0.03993098,70566.0,70560.0,0.00057787]
[1773147379826,0.00664801,70565.0,70556.0,0.07086549]
[1773147380069,0.00664801,70565.0,70557.0,0.07093391]
[1773147380274,0.00664801,70565.0,70557.0,6.963e-05]
[1773147380462,0.00664801,70565.0,70557.0,0.07093402]
[1773147380842,0.00664801,70565.0,70557.0,6.963e-05]
[1773147381042,0.00664801,70563.0,70557.0,6.963e-05]
[1773147382790,0.03,70562.0,70557.0,6.963e-05]
[1773147382944,0.07085879,70563.0,70554.0,0.0003531]
[1773147382945,0.03,70560.0,70554.0,0.07122079]
[1773147383143,0.00664801,70559.0,70554.0,0.00046661]
[1773147383766,0.00664801,70557.0,70554.0,0.00046661]
[1773147384097,0.00164043,70557.0,70553.0,0.07106852]
[1773147384388,0.00495787,70554.0,70549.0,0.0002]
[1773147384563,0.00495787,70553.0,70549.0,0.0002]
[1773147385192,0.00495787,70553.0,70547.0,0.0002]
[1773147385193,0.00144,70553.0,70547.0,0.0002]
[1773147386579,0.03,70552.0,70547.0,0.0002]
[1773147386783,0.03,70552.0,70544.0,0.06315999]
[1773147386784,0.2858566,70552.0,70544.0,0.06315999]
[1773147388204,0.03,70551.0,70545.0,0.25413317]
[1773147388407,0.07107212,70570.0,70544.0,0.06315999]
[1773147388574,0.07107212,70570.0,70559.0,0.0045318]
[1773147388575,0.00144,70566.0,70559.0,0.0045318]
[1773147388778,0.00022001,70570.0,70557.0,0.05354414]
[1773147388779,0.00022001,70570.0,70560.0,0.01057949]
[1773147389130,0.00144,70569.0,70561.0,0.25866497]
[1773147389276,0.03144,70569.0,70561.0,0.25413317]
[1773147389472,0.03144,70569.0,70557.0,0.0045318]
[1773147389786,0.00144,70568.0,70558.0,0.01199699]
[1773147390126,0.03,70567.0,70558.0,0.07086368]
[1773147390543,0.00022001,70563.0,70558.0,0.07086368]
[1773147391067,0.00022001,70563.0,70557.0,0.07086469]
[1773147391187,0.00022001,70563.0,70556.0,0.07086555]
[1773147392224,0.00144,70562.0,70553.0,0.07086861]
[1773147392425,0.00144,70562.0,70551.0,0.0723087]
[1773147392426,0.03,70561.0,70550.0,0.32500454]
[1773147393019,0.03,70561.0,70551.0,0.25866497]
[1773147393213,0.00144,70561.0,70554.0,0.25413317]
[1773147393414,0.00144,70561.0,70558.0,0.0045318]
[1773147393612,0.07107194,70570.0,70556.0,0.0045318]
[1773147393867,0.00144,70569.0,70560.0,0.05354414]
[1773147394067,0.00144,70569.0,70559.0,0.01652863]
[1773147394303,0.07085364,70568.0,70558.0,0.23048465]
[1773147394449,0.03,70567.0,70558.0,0.23048465]
[1773147394654,0.03,70567.0,70558.0,0.30134775]
[1773147397929,0.10085483,70567.0,70557.0,0.07086454]
[1773147398107,0.10085483,70567.0,70552.0,0.30135237]
[1773147398334,0.03,70563.0,70552.0,0.30135237]
[1773147398655,0.00144,70562.0,70550.0,0.07087137]
[1773147398973,0.24916396,70561.0,70550.0,0.07107137]
[1773147399154,0.24916396,70561.0,70550.0,0.12464442]
[1773147399372,0.24420609,70561.0,70550.0,0.12464442]
[1773147399728,0.10086208,70560.0,70550.0,0.12464442]
[1773147399935,0.03,70560.0,70550.0,0.12464442]
[1773147400125,0.03,70558.0,70544.0,0.00031335]
[1773147400320,0.03,70555.0,70544.0,0.07119018]
[1773147400526,0.07086226,70560.0,70542.0,0.0002]
[1773147400527,0.00479578,70550.0,70542.0,0.0002]
[1773147400768,0.27420609,70548.0,70537.0,0.07107855]
[1773147400969,0.00144,70547.0,70537.0,0.07107855]
[1773147401569,0.00144,70547.0,70536.0,0.20296645]
[1773147401570,0.03,70543.0,70536.0,0.13208083]
[1773147401880,0.03,70543.0,70531.0,0.07089056]
[1773147401881,0.27420609,70543.0,70531.0,0.07089056]
[1773147402111,0.03,70541.0,70531.0,0.07089056]
[1773147402230,0.03,70541.0,70530.0,0.07089081]
[1773147402231,0.00144,70540.0,70530.0,0.07089081]
[1773147403462,0.00144,70540.0,70530.0,0.12446386]
[1773147403667,0.00144,70540.0,70530.0,0.07089081]
[1773147404103,0.00144,70539.0,70533.0,0.00489137]
[1773147404304,0.00144,70541.0,70531.0,0.01689295]
[1773147404515,0.00144,70541.0,70531.0,0.00489137]
[1773147404951,0.03,70544.0,70531.0,0.00489137]
[1773147405153,0.00144,70540.0,70531.0,0.00489137]
[1773147405676,0.00144,70540.0,70531.0,0.23537602]
[1773147405974,0.00144,70540.0,70533.0,0.23048465]
[1773147406119,0.00144,70540.0,70534.0,0.24595934]
[1773147407127,0.00144,70540.0,70534.0,0.24106797]
[1773147408576,0.00144,70540.0,70534.0,0.31195565]
[1773147408790,0.00144,70540.0,70534.0,0.23048465]
[1773147409112,0.00144,70540.0,70530.0,0.0002]
[1773147409113,0.25873487,70539.0,70530.0,0.0002]
[1773147409324,0.25873487,70539.0,70530.0,0.0710917]
[1773147412166,0.25873487,70539.0,70530.0,0.07109118]
[1773147412326,0.25873487,70539.0,70529.0,0.0002]
[1773147412327,0.10088338,70539.0,70525.0,0.00489917]
[1773147412530,0.10088338,70539.0,70525.0,0.00023]
[1773147412531,0.25873487,70535.0,70525.0,0.00023]
[1773147412767,0.25873487,70535.0,70525.0,0.07112646]
[1773147412982,0.00144,70534.0,70525.0,0.07112646]
[1773147413127,0.00144,70534.0,70519.0,0.07090282]
[1773147413334,0.00486691,70529.0,70519.0,0.04608287]
[1773147413532,0.25873487,70527.0,70519.0,0.04608287]
[1773147413778,0.00144,70526.0,70519.0,0.04608287]
[1773147414196,0.00144,70526.0,70518.0,0.07090342]
[1773147414573,0.00144,70526.0,70517.0,0.0001847]
[1773147414775,0.00144,70526.0,70508.0,0.07139299]
[1773147414776,0.03,70524.0,70508.0,0.07139299]
[1773147414972,0.03,70519.0,70508.0,0.07150657]
[1773147415177,0.00144,70518.0,70508.0,0.07150657]
[1773147415376,0.00139,70518.0,70508.0,0.07150657]
[1773147415550,0.03486691,70516.0,70508.0,0.00059358]
[1773147415951,0.03486691,70516.0,70508.0,0.00067678]
[1773147416265,0.26360178,70514.0,70505.0,0.07091693]
[1773147416686,0.33451044,70514.0,70501.0,0.07091999]
[1773147416891,0.03,70512.0,70501.0,0.07091999]
[1773147417131,0.00486691,70510.0,70501.0,0.07091999]
[1773147417334,0.00486691,70510.0,70500.0,0.07115192]
[1773147417870,0.03486691,70509.0,70500.0,0.07115192]
[1773147418140,0.03,70509.0,70500.0,0.31312448]
[1773147418676,0.03,70509.0,70493.0,0.07092853]
[1773147418677,0.00144,70511.0,70489.0,0.24197256]
[1773147418678,0.03,70505.0,70489.0,0.24197256]
[1773147418888,0.00486691,70509.0,70493.0,0.00466917]
[1773147419075,0.22873487,70517.0,70496.0,0.24197256]
[1773147419323,0.00144,70516.0,70500.0,0.00466917]
[1773147419490,0.00144,70516.0,70500.0,0.24197256]
[1773147419491,0.22873487,70514.0,70500.0,0.24197256]
[1773147419694,0.00486691,70511.0,70497.0,0.01329029]
[1773147419950,0.00486691,70508.0,70494.0,0.24197256]
[1773147420123,0.03,70507.0,70494.0,0.24197256]
[1773147421080,0.03486691,70507.0,70495.0,0.07092701]
[1773147421503,0.28682616,70508.0,70495.0,0.07092701]
[1773147421953,0.28682616,70508.0,70495.0,0.31289957]
[1773147422107,0.28682616,70508.0,70500.0,0.0002]
[1773147422319,0.03,70512.0,70502.0,0.24197256]
[1773147422525,0.0002428,70530.0,70505.0,0.24197256]
[1773147422878,0.0002428,70530.0,70500.0,0.16103854]
[1773147422879,0.0002428,70530.0,70514.0,0.24197256]
[1773147423062,0.00144,70530.0,70519.0,0.07090287]
[1773147423263,0.00144,70530.0,70519.0,0.08555528]
[1773147423417,0.00144,70530.0,70523.0,0.24197256]
[1773147423617,0.00144,70530.0,70526.0,0.00466917]
[1773147423935,0.00144,70530.0,70526.0,0.24043302]
[1773147424184,0.00155345,70530.0,70526.0,0.24043302]
[1773147424386,0.00155345,70530.0,70526.0,0.23576385]
[1773147425704,0.03,70529.0,70519.0,0.07090287]
[1773147425994,0.03,70529.0,70521.0,0.07090059]
[1773147426172,0.00155345,70530.0,70523.0,0.00466917]
[1773147426343,0.00155345,70530.0,70525.0,0.00466917]
[1773147426546,0.00155345,70530.0,70525.0,0.23576385]
[1773147426748,0.00155345,70530.0,70525.0,0.24043302]
[1773147427681,0.00155345,70530.0,70526.0,0.00466917]
[1773147427881,0.00155345,70530.0,70526.0,0.24043302]
[1773147428495,0.00155345,70530.0,70524.0,0.07089781]
[1773147428701,0.00155345,70530.0,70502.0,0.07091997]
[1773147428702,0.03,70527.0,70502.0,0.07091997]
[1773147428857,0.07244602,70530.0,70506.0,0.23576385]
[1773147428858,0.25357111,70524.0,70506.0,0.23576385]
[1773147429055,0.00144,70523.0,70509.0,0.00466917]
[1773147429285,0.03,70522.0,70509.0,0.24043302]
[1773147429711,0.03,70520.0,70510.0,0.07091192]
[1773147430317,0.03,70520.0,70509.0,0.24043302]
[1773147430603,0.25357111,70520.0,70509.0,0.00466917]
[1773147430803,0.03,70517.0,70505.0,0.07091617]
[1773147431005,0.03,70514.0,70505.0,0.07091617]
[1773147431765,0.03,70514.0,70502.0,0.30668381]
[1773147431954,0.10090799,70514.0,70502.0,0.3113952]
[1773147432516,0.10090799,70514.0,70503.0,0.23576385]
[1773147432719,0.03,70514.0,70506.0,0.00471139]
[1773147432924,0.03,70514.0,70506.0,0.23576385]
[1773147433131,0.03,70514.0,70506.0,0.24047524]
[1773147433335,0.03,70514.0,70507.0,0.00471139]
[1773147433534,0.03,70514.0,70507.0,0.24047524]
[1773147434507,0.03,70513.0,70507.0,0.24047524]
[1773147434861,0.03,70513.0,70508.0,0.00471139]
[1773147435049,0.03,70513.0,70508.0,0.24047524]
[1773147435454,0.10090802,70514.0,70508.0,0.24047524]
[1773147435655,0.03,70514.0,70508.0,0.24047524]
[1773147436306,0.00144,70513.0,70508.0,0.23576385]
[1773147436546,0.00144,70516.0,70509.0,0.0097999]
[1773147436760,0.00144,70518.0,70512.0,0.23576385]
[1773147436967,0.03,70528.0,70516.0,0.23576385]
[1773147437166,0.03,70528.0,70508.0,0.23324281]
[1773147437167,0.00144,70527.0,70519.0,0.00471139]
[1773147437348,0.00144,70526.0,70517.0,0.00471139]
[1773147437759,0.03,70524.0,70517.0,0.00471139]
[1773147438056,0.03,70524.0,70517.0,0.25568512]
[1773147438513,0.03,70524.0,70517.0,0.08611444]
[1773147438692,0.00144,70525.0,70521.0,0.00471139]
[1773147438870,0.00144,70531.0,70524.0,0.23576385]
[1773147439068,0.00144,70531.0,70525.0,0.00471139]
[1773147439271,0.001,70527.0,70519.0,0.00471139]
[1773147439473,0.00144,70531.0,70521.0,0.23576385]
[1773147439672,0.00144,70531.0,70525.0,0.07089684]
[1773147439879,0.00144,70531.0,70524.0,0.0756092]
[1773147440078,0.03144,70531.0,70523.0,0.07089807]
[1773147440287,0.10233104,70531.0,70520.0,0.00471139]
[1773147440454,0.25357111,70527.0,70519.0,0.00011345]
[1773147441564,0.25357111,70527.0,70519.0,0.07101632]
[1773147441780,0.03,70525.0,70500.0,0.00043]
[1773147442015,0.03324235,70518.0,70501.0,0.07563236]
[1773147442219,0.03,70514.0,70502.0,0.23576385]
[1773147442425,0.03,70514.0,70501.0,0.07092097]
[1773147442426,0.03,70514.0,70504.0,0.24047524]
[1773147443273,0.03,70513.0,70504.0,0.24047524]
[1773147444274,0.1009072,70515.0,70505.0,0.07091695]
[1773147444488,0.03,70511.0,70500.0,0.0713517]
[1773147444701,0.00144,70510.0,70500.0,0.0713517]
[1773147444889,0.00144,70510.0,70501.0,0.23576385]
[1773147445093,0.00144,70510.0,70501.0,0.24047524]
[1773147445298,0.00144,70510.0,70501.0,0.00471139]
[1773147445474,0.00144,70510.0,70500.0,0.0713517]
[1773147448110,0.03,70508.0,70500.0,0.00043]
[1773147448735,0.25357111,70508.0,70500.0,0.00043]
[1773147449363,0.03,70507.0,70501.0,0.07563236]
[1773147449574,0.22357111,70515.0,70501.0,0.07563236]
[1773147449575,0.00144,70506.0,70505.0,0.23576385]
[1773147449791,0.07090287,70519.0,70507.0,0.00471139]
[1773147449990,0.00144,70518.0,70509.0,0.00471139]
[1773147450421,0.00144,70517.0,70508.0,0.01312545]
[1773147450623,0.29447398,70519.0,70508.0,0.01312545]
[1773147450624,0.03,70518.0,70508.0,0.01312545]
[1773147450824,0.00144,70516.0,70508.0,0.01312545]
[1773147451044,0.03144,70516.0,70505.0,0.01783684]
[1773147451227,0.03144,70516.0,70505.0,0.00471139]
[1773147451385,0.03,70514.0,70503.0,0.07091896]
[1773147451589,0.03,70512.0,70500.0,0.00043]
[1773147451817,0.03,70510.0,70500.0,0.07135144]
[1773147452005,0.00144,70509.0,70500.0,0.07135144]
[1773147452204,0.00144,70509.0,70501.0,0.001]
[1773147452763,0.00144,70509.0,70500.0,0.07135144]
[1773147452764,0.00144,70509.0,70505.0,0.23576385]
[1773147452955,0.00144,70509.0,70507.0,0.00471139]
[1773147453110,0.00144,70509.0,70500.0,0.07606283]
[1773147453325,0.00144,70509.0,70501.0,0.23576385]
[1773147453548,0.00144,70509.0,70502.0,0.00471139]
[1773147453748,0.00144,70509.0,70503.0,0.07563035]
[1773147455008,0.00144,70509.0,70504.0,0.22718313]
[1773147455211,0.00144,70509.0,70507.0,0.00471139]
[1773147455434,0.00144,70509.0,70508.0,0.23189452]
[1773147455639,0.07090297,70519.0,70503.0,0.07091896]
[1773147455640,0.00011349,70525.0,70504.0,0.23189452]
[1773147455856,0.00011349,70525.0,70508.0,0.22718313]
[1773147456066,0.00144,70524.0,70512.0,0.22718313]
[1773147456307,0.00144,70524.0,70512.0,0.23189452]
[1773147456718,0.03,70524.0,70512.0,0.23189452]
[1773147456949,0.00144,70523.0,70512.0,0.23189452]
[1773147458472,0.00144,70523.0,70513.0,0.07090891]
[1773147458874,0.03,70524.0,70513.0,0.07090891]
[1773147460441,0.00011349,70525.0,70514.0,0.22718313]
[1773147460661,0.00011349,70525.0,70506.0,0.07091595]
[1773147460662,0.00011349,70525.0,70517.0,0.00482304]
[1773147460833,0.00011349,70525.0,70518.0,0.23200617]
[1773147461422,0.03011349,70525.0,70518.0,0.23200617]
[1773147461626,0.00022001,70527.0,70519.0,0.00482304]
[1773147461822,0.07110768,70535.0,70513.0,0.22718313]
[1773147462019,0.07110768,70535.0,70516.0,0.00482304]
[1773147462242,0.07110768,70535.0,70519.0,0.22718313]
[1773147462478,0.03,70534.0,70523.0,0.07089885]
[1773147462651,0.00022001,70527.0,70524.0,0.22718313]
[1773147462996,0.00022001,70527.0,70525.0,0.00482304]
[1773147463132,0.00022001,70527.0,70525.0,0.23200617]
[1773147463524,0.00022001,70527.0,70525.0,0.00482304]
[1773147466699,0.10088809,70534.0,70525.0,0.00482304]
[1773147467321,0.10088809,70534.0,70525.0,0.07571983]
[1773147467992,0.10088809,70534.0,70525.0,0.00482304]
[1773147468393,0.10088809,70534.0,70524.0,0.07089716]
[1773147468804,0.10088809,70534.0,70523.0,0.07089879]
[1773147469060,0.33628431,70534.0,70522.0,0.30440164]
[1773147470488,0.10088809,70534.0,70522.0,0.07089898]
[1773147470806,0.03,70528.0,70516.0,0.01305438]
[1773147471038,0.03,70528.0,70517.0,0.07090488]
[1773147471232,0.03,70528.0,70518.0,0.01305382]
[1773147471676,0.1008946,70528.0,70518.0,0.01305382]
[1773147471850,0.23539622,70523.0,70513.0,0.07102141]
[1773147472049,0.26539622,70522.0,70513.0,0.07102141]
[1773147472957,0.26539622,70522.0,70512.0,0.07110891]
[1773147472958,0.03,70518.0,70512.0,0.0002]
[1773147473130,0.03,70518.0,70512.0,0.07110975]
[1773147475687,0.03,70518.0,70512.0,0.0002]
[1773147476754,0.03,70518.0,70512.0,0.07110937]
[1773147477749,0.031,70518.0,70512.0,0.07110937]
[1773147477993,0.031,70518.0,70512.0,0.0002]
[1773147478135,0.03,70518.0,70512.0,0.0002]
[1773147479175,0.03,70518.0,70512.0,0.07110964]
[1773147480430,0.30629462,70524.0,70512.0,0.07592788]
[1773147480653,0.30640813,70524.0,70512.0,0.07592788]
[1773147481440,0.03,70521.0,70512.0,0.07110964]
[1773147481791,0.03,70521.0,70512.0,0.0711095]
[1773147482164,0.03,70521.0,70512.0,0.0002]
[1773147482368,0.03,70515.0,70504.0,0.00501824]
[1773147482575,0.26539622,70515.0,70504.0,0.0002]
[1773147482772,0.26713896,70515.0,70504.0,0.0002]
[1773147483349,0.03,70512.0,70500.0,0.00043]
[1773147483604,0.03,70508.0,70500.0,0.00043]
[1773147484011,0.03,70504.0,70496.0,0.07114851]
[1773147484177,0.24490248,70504.0,70496.0,0.0002228]
[1773147484532,0.24490248,70504.0,70497.0,0.07112426]
[1773147484723,0.24490248,70504.0,70497.0,0.0002]
[1773147485473,0.31582067,70504.0,70497.0,0.0002]
[1773147488217,0.03,70502.0,70497.0,0.0002]
[1773147488417,0.24490248,70502.0,70497.0,0.0002]
[1773147489313,0.24490248,70502.0,70487.0,0.07093414]
[1773147489505,0.24490248,70502.0,70488.0,0.00599818]
[1773147489715,0.03,70497.0,70484.0,0.0711567]
[1773147489924,0.03,70493.0,70484.0,0.07127009]
[1773147490347,0.03,70493.0,70484.0,0.00033249]
[1773147490542,0.03,70493.0,70489.0,0.0002]
[1773147490919,0.03,70491.0,70489.0,0.0002]
[1773147491511,0.03,70490.0,70484.0,0.00033249]
[1773147491752,0.03,70490.0,70482.0,0.07114005]
[1773147492288,0.03,70490.0,70482.0,0.0002]
[1773147492497,0.10093215,70490.0,70482.0,0.0002]
[1773147492699,0.03,70490.0,70482.0,0.07114006]
[1773147492901,0.07092531,70497.0,70482.0,0.07114006]
[1773147492902,0.03,70496.0,70483.0,0.21458761]
[1773147493109,0.0709161,70506.0,70485.0,0.21458761]
[1773147493311,0.01305393,70505.0,70488.0,0.00461675]
[1773147493517,0.01305393,70505.0,70490.0,0.21458761]
[1773147493710,0.01305393,70505.0,70493.0,0.00461675]
[1773147494135,0.01305393,70505.0,70494.0,0.00461675]
[1773147494136,0.03,70502.0,70494.0,0.00461675]
[1773147495003,0.03,70501.0,70494.0,0.00461675]
[1773147495624,0.00037882,70506.0,70494.0,0.00461675]
[1773147495821,0.00037882,70506.0,70498.0,0.00461675]
[1773147496033,0.00037882,70506.0,70501.0,0.07092097]
[1773147496034,0.03037882,70506.0,70501.0,0.07092097]
[1773147496243,0.07090906,70513.0,70503.0,0.00461675]
[1773147496444,0.07090906,70513.0,70504.0,0.21458761]
[1773147496653,0.07090906,70513.0,70505.0,0.00461675]
[1773147496963,0.08418157,70514.0,70505.0,0.00461675]
[1773147497182,0.03,70513.0,70507.0,0.00461675]
[1773147497383,0.0002191,70514.0,70510.0,0.21458761]
[1773147497714,0.0002191,70514.0,70511.0,0.00461675]
[1773147498127,0.0002191,70514.0,70512.0,0.07090991]
[1773147498246,0.03,70520.0,70513.0,0.00461675]
[1773147498861,0.03011358,70520.0,70513.0,0.00461675]
[1773147499084,0.03,70519.0,70513.0,0.00461675]
[1773147499931,0.0300834,70519.0,70513.0,0.00461675]
[1773147500293,0.03,70518.0,70514.0,0.00461675]
[1773147500482,0.03,70518.0,70515.0,0.00461675]
[1773147501046,0.00011358,70520.0,70515.0,0.00461675]
[1773147501255,0.00011358,70520.0,70516.0,0.21458761]
[1773147501443,0.00011358,70520.0,70517.0,0.00461675]
[1773147501652,0.00011358,70520.0,70513.0,0.07090845]
[1773147501882,0.00011358,70520.0,70513.0,0.0755252]
[1773147502128,0.00011358,70520.0,70513.0,0.00461675]
[1773147502497,0.00011358,70520.0,70513.0,0.07552534]
[1773147502903,0.00011358,70520.0,70513.0,0.00461675]
[1773147503457,0.00011358,70520.0,70502.0,0.33956326]
[1773147503660,0.24490248,70517.0,70504.0,0.21458761]
[1773147503839,0.03,70515.0,70504.0,0.21920436]
[1773147504039,0.03,70515.0,70506.0,0.21458761]
[1773147504188,0.03,70515.0,70503.0,0.07091896]
[1773147504189,0.03,70515.0,70508.0,0.00461675]
[1773147504396,0.03,70515.0,70509.0,0.07091293]
[1773147504629,0.03,70515.0,70509.0,0.07552968]
[1773147504828,0.03,70514.0,70509.0,0.07091293]
[1773147505024,0.03,70514.0,70510.0,0.00461675]
[1773147505659,0.03,70514.0,70503.0,0.00461675]
[1773147505856,0.03,70514.0,70503.0,0.21458761]
[1773147506060,0.03,70514.0,70504.0,0.00461675]
[1773147506266,0.03,70514.0,70505.0,0.21458761]
[1773147506490,0.03,70514.0,70506.0,0.00461675]
[1773147507853,0.10090881,70514.0,70500.0,0.0002]
[1773147508058,0.10090881,70514.0,70500.0,0.07112157]
[1773147508059,0.24490248,70512.0,70500.0,0.07112157]
[1773147508266,0.03,70510.0,70500.0,0.07573832]
[1773147508574,0.03,70510.0,70502.0,0.00461675]
[1773147508791,0.03,70510.0,70503.0,0.00461675]
[1773147509190,0.03,70509.0,70503.0,0.00461675]
[1773147509518,0.28581038,70516.0,70505.0,0.00461675]
[1773147509720,0.28581038,70516.0,70506.0,0.00461675]
[1773147510014,0.28581038,70516.0,70507.0,0.07091494]
[1773147510252,0.03,70515.0,70507.0,0.07091494]
[1773147511352,0.03,70516.0,70508.0,0.00028819]
[1773147511496,0.00011358,70520.0,70512.0,0.21458761]
[1773147511706,0.00011358,70520.0,70513.0,0.00585552]
[1773147511915,0.00011358,70520.0,70514.0,0.00461675]
[1773147513318,0.00022001,70528.0,70518.0,0.21458761]
[1773147513520,0.00022001,70528.0,70522.0,0.21458761]
[1773147513659,0.00022001,70528.0,70525.0,0.00461675]
[1773147513870,0.00022001,70528.0,70522.0,0.07089953]
[1773147514469,0.00022001,70528.0,70522.0,0.07551628]
[1773147514915,0.03174274,70525.0,70510.0,0.07091192]
[1773147515111,0.24385567,70523.0,70510.0,0.0710255]
[1773147515507,0.03,70521.0,70510.0,0.0710255]
[1773147515790,0.03,70521.0,70511.0,0.21947096]
[1773147515924,0.03,70521.0,70513.0,0.07090891]
[1773147516492,0.03,70522.0,70513.0,0.07090891]
[1773147516833,0.01305393,70524.0,70517.0,0.00461675]
[1773147517013,0.2978076,70524.0,70513.0,0.07090891]
[1773147517246,0.08395193,70524.0,70513.0,0.07090891]
[1773147517464,0.2978076,70524.0,70513.0,0.07090891]
[1773147517669,0.03,70523.0,70513.0,0.07090891]
[1773147517879,0.03,70523.0,70513.0,0.07552566]
[1773147518828,0.10089941,70523.0,70513.0,0.07552566]
[1773147519729,0.03,70521.0,70511.0,0.07091059]
[1773147519945,0.03,70519.0,70511.0,0.07091059]
[1773147520564,0.07111316,70529.0,70514.0,0.21947096]
[1773147520719,0.07111434,70528.0,70518.0,0.21947096]
[1773147520917,0.07111434,70528.0,70519.0,0.00492672]
[1773147520918,0.03,70527.0,70519.0,0.00492672]
[1773147521237,0.001,70521.0,70520.0,0.00492672]
[1773147521398,0.03,70527.0,70520.0,0.22439768]
[1773147522252,0.03022001,70528.0,70520.0,0.22439768]
[1773147522658,0.10211429,70528.0,70520.0,0.22439768]
[1773147522836,0.10311429,70528.0,70520.0,0.22439768]
[1773147523010,0.10211429,70528.0,70520.0,0.22439768]
[1773147523209,0.00022001,70525.0,70520.0,0.22439768]
[1773147523631,0.00022001,70525.0,70520.0,0.21947096]
[1773147523856,0.00022001,70525.0,70517.0,0.07090439]
[1773147529183,0.03,70524.0,70516.0,0.07090496]
[1773147530207,0.03,70523.0,70516.0,0.07090496]
[1773147531163,0.03022001,70525.0,70516.0,0.07090496]
[1773147531569,0.03022001,70525.0,70516.0,0.28325911]
[1773147532279,0.03022001,70525.0,70516.0,0.07090496]
[1773147532521,0.03022001,70525.0,70517.0,0.21235415]
[1773147532867,0.03122001,70525.0,70517.0,0.21235415]
[1773147533203,0.03122001,70525.0,70518.0,0.07090388]
[1773147534103,0.03022001,70525.0,70518.0,0.07090388]
[1773147534610,0.00144,70524.0,70518.0,0.07090388]
[1773147540562,0.00144,70524.0,70516.0,0.07090388]
[1773147541123,0.00144,70524.0,70517.0,0.07090485]
[1773147541319,0.00144,70524.0,70516.0,0.07090388]
[1773147541743,0.00144,70524.0,70516.0,0.28325803]
[1773147541950,0.00144,70524.0,70516.0,0.07090388]
[1773147542148,0.00022001,70535.0,70517.0,0.00457459]
[1773147542479,0.00022001,70540.0,70522.0,0.21235415]
[1773147542695,0.00144,70535.0,70524.0,0.21235415]
[1773147542895,0.00144,70535.0,70527.0,0.00457459]
[1773147543013,0.00144,70535.0,70528.0,0.21692874]
[1773147543220,0.00144,70534.0,70528.0,0.21692874]
[1773147543421,0.00144,70534.0,70530.0,0.21692874]
[1773147543840,0.00022001,70533.0,70530.0,0.21692874]
[1773147545003,0.00022001,70533.0,70529.0,0.07089282]
[1773147545504,0.00022001,70533.0,70526.0,0.2183932]
[1773147546064,0.00022001,70533.0,70526.0,0.22296779]
[1773147547663,0.00022001,70533.0,70528.0,0.22296779]
[1773147547879,0.00144,70534.0,70528.0,0.2183932]
[1773147548668,0.00144,70536.0,70531.0,0.00457459]
[1773147548876,0.00144,70536.0,70532.0,0.22296779]
[1773147549244,0.00144,70536.0,70533.0,0.00457459]
[1773147549446,0.00144,70536.0,70531.0,0.07089081]
[1773147549669,0.00144,70536.0,70532.0,0.2183932]
[1773147550268,0.00144,70536.0,70532.0,0.22333576]
[1773147550645,0.00166001,70536.0,70532.0,0.22333576]
[1773147551400,0.00144,70542.0,70535.0,0.00494256]
[1773147551626,0.00144,70541.0,70537.0,0.28927798]
[1773147552328,0.00144,70541.0,70537.0,0.07088478]
[1773147552464,0.00144,70541.0,70538.0,0.2183932]
[1773147552978,0.00144,70541.0,70537.0,0.07088478]
[1773147553578,0.00144,70541.0,70535.0,0.07088593]
[1773147554005,0.00011356,70542.0,70535.0,0.07088593]
[1773147554309,0.00132644,70541.0,70538.0,0.2183932]
[1773147554526,0.00022001,70548.0,70539.0,0.00494256]
[1773147554732,0.00144,70546.0,70540.0,0.22333576]
[1773147555040,0.00144,70545.0,70542.0,0.2183932]
[1773147555437,0.00144,70547.0,70542.0,0.2183932]
[1773147555641,0.00144,70547.0,70543.0,0.07087875]
[1773147555844,0.00144,70546.0,70543.0,0.07087875]
[1773147556144,0.25001326,70543.0,70529.0,0.07089246]
[1773147556347,0.25001326,70543.0,70530.0,0.27200309]
[1773147556637,0.25001326,70543.0,70531.0,0.2183932]
[1773147556840,0.03,70543.0,70531.0,0.2183932]
[1773147556986,0.25145326,70546.0,70531.0,0.2183932]
[1773147557185,0.25145326,70546.0,70532.0,0.22123812]
[1773147557393,0.03,70546.0,70533.0,0.00494256]
[1773147557588,0.03,70546.0,70539.0,0.2183932]
[1773147557794,0.00144,70545.0,70541.0,0.22333576]
[1773147558250,0.00144,70544.0,70541.0,0.22333576]
[1773147558458,0.00144,70544.0,70541.0,0.2183932]
[1773147559753,0.00144,70544.0,70532.0,0.07088912]
[1773147559931,0.03,70542.0,70532.0,0.07088912]
[1773147560538,0.0301536,70542.0,70532.0,0.07088912]
[1773147560745,0.0301536,70542.0,70532.0,0.28928232]
[1773147562193,0.03,70541.0,70533.0,0.2183932]
[1773147562604,0.0301536,70541.0,70533.0,0.2183932]
[1773147562815,0.0301536,70541.0,70533.0,0.22333576]
[1773147563192,0.03,70540.0,70533.0,0.22333576]
[1773147563519,0.0301536,70540.0,70533.0,0.22333576]
[1773147564078,0.0301536,70540.0,70534.0,0.07088779]
[1773147564423,0.00144,70544.0,70535.0,0.2183932]
[1773147565215,0.00144,70544.0,70537.0,0.2183932]
[1773147565767,0.00022001,70542.0,70534.0,0.07088779]